[Event "VIII Iberoamericano Mexico 2022"]
[Site "Mexico City"]
[Date "2022.02.17"]
[Round "6.12"]
[White "Rodriguez Vila, Andres"]
[Black "Perez Rodriguez, Luis Manuel"]
[Result "1-0"]
[ECO "C58"]
[WhiteElo "2461"]
[BlackElo "2324"]
[Annotator "ChessBase"]
[PlyCount "115"]
[EventDate "2022.02.12"]
[EventType "swiss"]
[EventCountry "MEX"]
[SourceTitle "playchess.com"]
[Source "ChessBase"]
[SourceQuality "1"]
[TimeControl "5400+30"]

1. e4 {[%emt 0:00:05]} e5 {[%emt 0:00:27]} 2. Nf3 {[%emt 0:00:06]} Nc6 {[%emt 0:00:03]} 3. Bc4 {[%emt 0:00:04]} Nf6 {[%emt 0:01:12]} 4. Ng5 {[%emt 0:00:32]} d5 {[%emt 0:00:43]} 5. exd5 {[%emt 0:00:05]} Na5 {[%emt 0:00:03]} 6. Bb5+ {[%emt 0:00:07]} c6 {[%emt 0:02:47]} 7. dxc6 {[%emt 0:00:36]} bxc6 {[%emt 0:00:07]} 8. Bd3 {[%emt 0:00:06]} Nd5 {[%emt 0:02:22]} 9. Nf3 {[%emt 0:00:07]} Bd6 {[%emt 0:03:06]} 10. O-O {[%emt 0:00:08]} O-O {[%emt 0:00:14]} 11. Re1 {[%emt 0:00:12]} Bg4 {[%emt 0:06:44]} 12. h3 {[%emt 0:02:41]} Bh5 {[%emt 0:00:50]} 13. g4 {[%emt 0:07:55]} Bg6 {[%emt 0:00:26]} 14. Bxg6 {[%emt 0:00:05]} fxg6 {[%emt 0:04:08]} 15. d4 {[%emt 0:00:25]} exd4 {[%emt 0:05:27]} 16. Nbd2 {[%emt 0:03:45]} Nf4 {[%emt 0:06:00]} 17. Ne4 {[%emt 0:00:11]} Nxh3+ {[%emt 0:05:09]} 18. Kg2 {[%emt 0:05:35]} Nf4+ {[%emt 0:00:30]} 19. Bxf4 {[%emt 0:00:05]} Rxf4 {[%emt 0:00:27]} 20. Nfg5 {[%emt 0:01:30]} Qd7 {[%emt 0:08:02]} 21. f3 {[%emt 0:01:04]} c5 {[%emt 0:02:46]} 22. Nxd6 {[%emt 0:06:39]} Qxd6 {[%emt 0:00:28]} 23. Qe2 {[%emt 0:00:07]} Qd5 {[%emt 0:06:47]} 24. Qe6+ {[%emt 0:09:47]} Qxe6 {[%emt 0:00:07]} 25. Nxe6 {[%emt 0:00:03]} Rf7 {[%emt 0:02:07]} 26. b3 {[%emt 0:00:32]} Rc8 {[%emt 0:09:14]} 27. Re5 {[%emt 0:02:20]} Nb7 {[%emt 0:00:09]} 28. Ng5 {[%emt 0:01:30]} Rf6 {[%emt 0:09:51]} 29. Rae1 {[%emt 0:05:52]} Nd6 {[%emt 0:06:49]} 30. Rd5 {[%emt 0:01:35]} h6 {[%emt 0:01:25]} 31. Re6 {[%emt 0:02:49]} Ne8 {[%emt 0:01:54]} 32. Rde5 {[%emt 0:11:28]} Nc7 {[%emt 0:02:27]} 33. Rxc5 {[%emt 0:00:38]} hxg5 {[%emt 0:00:07]} 34. Re7 {[%emt 0:00:32]} Rf7 {[%emt 0:00:41]} 35. Rxf7 {[%emt 0:00:05]} Kxf7 {[%emt 0:00:04]} 36. Kg3 {[%emt 0:03:14]} Ke7 {[%emt 0:01:09]} 37. Rc4 {[%emt 0:00:05]} a5 {[%emt 0:02:22]} 38. a4 {[%emt 0:01:03]} Ke6 {[%emt 0:01:02]} 39. Kf2 {[%emt 0:02:12]} Kd6 {[%emt 0:01:00]} 40. Rxd4+ {[%emt 0:00:04]} Kc6 {[%emt 0:00:02]} 41. Rc4+ {[%emt 0:00:38]} Kb6 {[%emt 0:00:56]} 42. c3 {[%emt 0:02:30]} Rd8 {[%emt 0:03:08]} 43. b4 {[%emt 0:00:10]} Ne6 {[%emt 0:02:35]} 44. Ke3 {[%emt 0:03:17]} Rf8 {[%emt 0:02:05]} 45. Re4 {[%emt 0:00:31]} Nc7 {[%emt 0:01:01]} 46. Rd4 {[%emt 0:01:29]} Rf6 {[%emt 0:00:41]} 47. Rd7 {[%emt 0:00:41]} Rc6 {[%emt 0:00:29]} 48. Kd2 {[%emt 0:02:27]} Ne6 {[%emt 0:00:26]} 49. b5 {[%emt 0:00:21]} Rc4 {[%emt 0:01:19]} 50. Rd6+ {[%emt 0:00:15]} Kc7 {[%emt 0:02:04]} 51. Rxe6 {[%emt 0:00:19]} Rxa4 {[%emt 0:00:02]} 52. Rxg6 {[%emt 0:00:28]} Rf4 {[%emt 0:00:09]} 53. Ke3 {[%emt 0:03:48]} a4 {[%emt 0:00:29]} 54. Rxg7+ {[%emt 0:00:34]} Kb6 {[%emt 0:00:26]} 55. Rg6+ {[%emt 0:00:04]} Kb7 {[%emt 0:00:22]} 56. Rxg5 {[%emt 0:02:14]} a3 {[%emt 0:00:18]} 57. Rg7+ {[%emt 0:00:48]} Kb6 {[%emt 0:00:28]} 58. Kxf4 {[%emt 0:00:11]} 1-0

[Event "VIII Iberoamericano Mexico 2022"]
[Site "Mexico City"]
[Date "2022.02.17"]
[Round "6.13"]
[White "Chinchilla Miranda, Eugenio"]
[Black "Cardoso Cardoso, Jose Gabriel"]
[Result "0-1"]
[ECO "E32"]
[WhiteElo "2193"]
[BlackElo "2461"]
[Annotator "ChessBase"]
[PlyCount "62"]
[EventDate "2022.02.12"]
[EventType "swiss"]
[EventCountry "MEX"]
[SourceTitle "playchess.com"]
[Source "ChessBase"]
[SourceQuality "1"]
[TimeControl "5400+30"]

1. d4 {[%emt 0:00:12]} Nf6 {[%emt 0:00:06]} 2. c4 {[%emt 0:00:20]} e6 {[%emt 0:00:09]} 3. Nc3 {[%emt 0:00:13]} Bb4 {[%emt 0:00:10]} 4. Qc2 {[%emt 0:00:19]} O-O {[%emt 0:00:22]} 5. e4 {[%emt 0:00:17]} d5 {[%emt 0:01:25]} 6. e5 {[%emt 0:00:08]} Ne4 {[%emt 0:00:07]} 7. Bd3 {[%emt 0:00:06]} c5 {[%emt 0:00:08]} 8. Nf3 {[%emt 0:00:15]} cxd4 {[%emt 0:00:09]} 9. Nxd4 {[%emt 0:00:04]} Nd7 {[%emt 0:00:14]} 10. Bf4 {[%emt 0:00:07]} Ndc5 {[%emt 0:01:19]} 11. O-O {[%emt 0:00:21]} Bxc3 {[%emt 0:00:09]} 12. bxc3 {[%emt 0:00:11]} Bd7 {[%emt 0:00:29]} 13. cxd5 {[%emt 0:03:00]} exd5 {[%emt 0:03:03]} 14. Be2 {[%emt 0:00:55]} Rc8 {[%emt 0:01:44]} 15. f3 {[%emt 0:05:30]} Ng5 {[%emt 0:00:43]} 16. Qd2 {[%emt 0:06:24]} h6 {[%emt 0:08:01]} 17. Rac1 {[%emt 0:07:20]} Re8 {[%emt 0:04:07]} 18. Bb5 {[%emt 0:07:24]} Nge6 {[%emt 0:13:15]} 19. Bxd7 {[%emt 0:06:34]} Nxd7 {[%emt 0:05:00]} 20. Bg3 {[%emt 0:01:49]} Nb6 {[%emt 0:09:35]} 21. f4 {[%emt 0:04:22]} Nc4 {[%emt 0:01:01]} 22. Qe2 {[%emt 0:01:32]} Qb6 {[%emt 0:02:50]} 23. Rfd1 {[%emt 0:12:00]} Nb2 {[%emt 0:04:56]} 24. Rb1 {[%emt 0:02:29]} Nxd1 {[%emt 0:00:24]} 25. Rxb6 {[%emt 0:01:06]} Nxc3 {[%emt 0:00:05]} 26. Qg4 {[%emt 0:06:50]} axb6 {[%emt 0:02:59]} 27. Nf5 {[%emt 0:01:56]} Ne4 {[%emt 0:00:07]} 28. h4 {[%emt 0:00:52]} h5 {[%emt 0:02:44]} 29. Qxh5 {[%emt 0:03:03]} Nd4 {[%emt 0:00:12]} 30. Kh2 {[%emt 0:02:11]} Rc1 {[%emt 0:02:29]} 31. Kh3 {[%emt 0:02:42]} g6 {[%emt 0:01:29]} 0-1

[Event "VIII Iberoamericano Mexico 2022"]
[Site "Mexico City"]
[Date "2022.02.17"]
[Round "6.14"]
[White "Zacarias, M Ruben D"]
[Black "Ibarra Chami, Luis Fernando"]
[Result "1/2-1/2"]
[ECO "B51"]
[WhiteElo "2174"]
[BlackElo "2451"]
[Annotator "ChessBase"]
[PlyCount "68"]
[EventDate "2022.02.12"]
[EventType "swiss"]
[EventCountry "MEX"]
[SourceTitle "playchess.com"]
[Source "ChessBase"]
[SourceQuality "1"]
[TimeControl "5400+30"]

1. e4 {[%emt 0:00:08]} c5 {[%emt 0:00:15]} 2. Nf3 {[%emt 0:00:06]} d6 {[%emt 0:00:19]} 3. Bb5+ {[%emt 0:00:49]} Nc6 {[%emt 0:01:41]} 4. O-O {[%emt 0:01:23]} Bd7 {[%emt 0:03:19]} 5. Re1 {[%emt 0:01:28]} Nf6 {[%emt 0:00:31]} 6. c3 {[%emt 0:00:07]} a6 {[%emt 0:00:36]} 7. Bf1 {[%emt 0:00:14]} Bg4 {[%emt 0:00:49]} 8. d4 {[%emt 0:00:47]} cxd4 {[%emt 0:04:19]} 9. cxd4 {[%emt 0:00:06]} d5 {[%emt 0:05:40]} 10. Nc3 {[%emt 0:05:19]} e6 {[%emt 0:09:51]} 11. Bg5 {[%emt 0:05:30]} Be7 {[%emt 0:07:51]} 12. Bxf6 {[%emt 0:11:59]} Bxf6 {[%emt 0:05:45]} 13. exd5 {[%emt 0:01:05]} Nxd4 {[%emt 0:00:51]} 14. dxe6 {[%emt 0:08:35]} Nxf3+ {[%emt 0:02:38]} 15. gxf3 {[%emt 0:00:24]} Bxe6 {[%emt 0:02:55]} 16. Bh3 {[%emt 0:12:54]} Bxc3 {[%emt 0:04:02]} 17. bxc3 {[%emt 0:10:47]} Qg5+ {[%emt 0:03:30]} 18. Kh1 {[%emt 0:01:10]} O-O {[%emt 0:00:45]} 19. Bxe6 {[%emt 0:00:17]} fxe6 {[%emt 0:00:04]} 20. Rxe6 {[%emt 0:00:41]} Kh8 {[%emt 0:02:45]} 21. Qe2 {[%emt 0:03:48]} Qh5 {[%emt 0:01:35]} 22. Re3 {[%emt 0:01:43]} Rf4 {[%emt 0:01:08]} 23. Rg1 {[%emt 0:02:20]} Raf8 {[%emt 0:00:16]} 24. Rg4 {[%emt 0:00:57]} R4f7 {[%emt 0:02:29]} 25. Re5 {[%emt 0:11:46]} Qh3 {[%emt 0:00:07]} 26. Rg3 {[%emt 0:00:07]} Qc8 {[%emt 0:00:04]} 27. Re7 {[%emt 0:00:36]} Qc6 {[%emt 0:03:37]} 28. Qe5 {[%emt 0:02:32]} Rxe7 {[%emt 0:00:48]} 29. Qxe7 {[%emt 0:00:12]} Rg8 {[%emt 0:00:02]} 30. Qe5 {[%emt 0:01:17]} Qc4 {[%emt 0:00:13]} 31. a3 {[%emt 0:02:27]} Qf1+ {[%emt 0:04:11]} 32. Rg1 {[%emt 0:00:11]} Qxf2 {[%emt 0:00:05]} 33. Rxg7 {[%emt 0:00:05]} Rxg7 {[%emt 0:00:04]} 34. Qd4 {[%emt 0:15:40]} Kg8 1/2-1/2

[Event "VIII Iberoamericano Mexico 2022"]
[Site "Mexico City"]
[Date "2022.02.17"]
[Round "6.15"]
[White "Jimenez Garcia, Emmanuel"]
[Black "Capo Vidal, Uriel"]
[Result "1-0"]
[ECO "A08"]
[WhiteElo "2403"]
[BlackElo "2306"]
[Annotator "NA"]
[PlyCount "81"]
[EventDate "2022.02.12"]
[EventType "swiss"]
[EventCountry "MEX"]
[SourceTitle "playchess.com"]
[Source "ChessBase"]
[SourceQuality "1"]
[TimeControl "5400+30"]

1. Nf3 {[%emt 0:03:12]} Nf6 {[%emt 0:17:11]} 2. g3 {[%emt 0:00:05]} d5 {[%emt 0:00:50]} 3. Bg2 {[%emt 0:00:06]} c5 {[%emt 0:00:08]} 4. O-O {[%emt 0:00:48]} Nc6 {[%emt 0:00:46]} 5. d3 {[%emt 0:03:38]} e5 {[%emt 0:00:56]} 6. Nbd2 {[%emt 0:04:05]} Be7 {[%emt 0:01:32]} 7. e4 {[%emt 0:00:11]} d4 {[%emt 0:00:10]} 8. Nc4 {[%emt 0:01:15]} Qc7 {[%emt 0:00:23]} 9. a4 {[%emt 0:00:15]} Nd7 {[%emt 0:00:28]} 10. c3 {[%emt 0:09:11]} Nb6 {[%emt 0:02:30]} 11. Na3 {[%emt 0:02:29]} Bg4 {[%emt 0:04:29]} 12. h3 {[%emt 0:07:42]} Bh5 {[%emt 0:02:08]} 13. a5 {[%emt 0:07:59]} Nd7 {[%emt 0:00:31]} 14. a6 {[%emt 0:08:38]} bxa6 {[%emt 0:10:56]} 15. Nc4 {[%emt 0:04:35]} O-O {[%emt 0:04:49]} 16. Qa4 {[%emt 0:03:02]} Rad8 {[%emt 0:05:50]} 17. g4 {[%emt 0:10:28]} Bg6 {[%emt 0:01:45]} 18. Qxa6 {[%emt 0:01:21]} dxc3 {[%emt 0:08:07]} 19. bxc3 {[%emt 0:00:08]} Ndb8 {[%emt 0:00:52]} 20. Qa4 {[%emt 0:10:21]} Rxd3 {[%emt 0:00:49]} 21. Ne3 {[%emt 0:00:06]} Rfd8 {[%emt 0:10:32]} 22. Nd5 {[%emt 0:01:37]} Qd6 {[%emt 0:07:11]} 23. Ne1 {[%emt 0:00:38]} Bxe4 {[%emt 0:00:19]} 24. Nxe7+ {[%emt 0:00:30]} Nxe7 {[%emt 0:00:02]} 25. Qxe4 {[%emt 0:01:10]} Rxc3 {[%emt 0:01:56]} 26. Bb2 {[%emt 0:00:54]} Rb3 {[%emt 0:00:47]} 27. Bxe5 {[%emt 0:00:40]} Qd7 {[%emt 0:00:56]} 28. Bxb8 {[%emt 0:02:55]} Rdxb8 {[%emt 0:00:01]} 29. Nf3 {[%emt 0:01:56]} R3b4 {[%emt 0:01:21]} 30. Qe3 {[%emt 0:01:01]} Qc7 {[%emt 0:00:49]} 31. Rfc1 {[%emt 0:00:14]} Rc8 {[%emt 0:01:40]} 32. Ne5 {[%emt 0:01:45]} h5 {[%emt 0:03:18]} 33. Rd1 {[%emt 0:02:14]} Re8 {[%emt 0:05:14]} 34. Rd7 {[%emt 0:03:04]} Qb8 {[%emt 0:00:03]} 35. Nd3 {[%emt 0:06:32]} Ng6 {[%emt 0:02:57]} 36. Qxc5 {[%emt 0:01:29]} Rb1+ {[%emt 0:01:05]} 37. Rxb1 {[%emt 0:00:05]} Qxb1+ {[%emt 0:00:01]} 38. Bf1 {[%emt 0:00:41]} hxg4 {[%emt 0:00:22]} 39. Qc4 {[%emt 0:01:00]} Rf8 {[%emt 0:00:19]} 40. hxg4 {[%emt 0:00:19]} Nh4 {[%emt 0:00:43]} 41. Ne5 {[%emt 0:02:41]} 1-0

[Event "VIII Iberoamericano Mexico 2022"]
[Site "Mexico City"]
[Date "2022.02.17"]
[Round "6.16"]
[White "Encinas Varela, David"]
[Black "Galaviz Medina, Sion Radamantys"]
[Result "0-1"]
[ECO "B84"]
[WhiteElo "1862"]
[BlackElo "2374"]
[Annotator "NA"]
[PlyCount "66"]
[EventDate "2022.02.12"]
[EventType "swiss"]
[EventCountry "MEX"]
[SourceTitle "playchess.com"]
[Source "ChessBase"]
[SourceQuality "1"]
[TimeControl "5400+30"]

1. e4 {[%emt 0:00:30]} c5 {[%emt 0:03:21]} 2. Nf3 {[%emt 0:00:00]} d6 {[%emt 0:00:04]} 3. d4 {[%emt 0:00:00]} cxd4 {[%emt 0:00:04]} 4. Nxd4 {[%emt 0:00:00]} Nf6 {[%emt 0:00:05]} 5. Nc3 {[%emt 0:00:00]} a6 {[%emt 0:00:03]} 6. Be2 {[%emt 0:00:15]} e6 {[%emt 0:00:59]} 7. g4 {[%emt 0:00:59]} h6 {[%emt 0:03:53]} 8. f4 {[%emt 0:02:19]} Be7 {[%emt 0:01:33]} 9. Be3 {[%emt 0:03:12]} Nc6 {[%emt 0:45:06]} 10. O-O {[%emt 0:00:13]} d5 {[%emt 0:05:46]} 11. e5 {[%emt 0:03:55]} Nd7 {[%emt 0:00:51]} 12. Nxc6 {[%emt 0:49:05]} bxc6 {[%emt 0:00:10]} 13. Bf2 {[%emt 0:00:06]} O-O {[%emt 0:03:20]} 14. Bg3 {[%emt 0:00:21]} f6 {[%emt 0:00:14]} 15. Bd3 {[%emt 0:01:06]} fxe5 {[%emt 0:10:24]} 16. fxe5 {[%emt 0:00:23]} Rxf1+ {[%emt 0:00:16]} 17. Kxf1 {[%emt 0:03:09]} Rb8 {[%emt 0:02:40]} 18. g5 {[%emt 0:08:45]} Bxg5 {[%emt 0:01:13]} 19. Qh5 {[%emt 0:00:26]} Nc5 {[%emt 0:06:45]} 20. Bg6 {[%emt 0:04:17]} Bd7 {[%emt 0:00:11]} 21. h4 {[%emt 0:01:30]} Be7 {[%emt 0:02:56]} 22. Bf7+ {[%emt 0:07:57]} Kh8 {[%emt 0:00:06]} 23. Kg1 {[%emt 0:01:50]} Be8 {[%emt 0:00:11]} 24. Rf1 {[%emt 0:00:12]} Bxf7 {[%emt 0:00:14]} 25. Rxf7 {[%emt 0:00:07]} Qe8 {[%emt 0:00:06]} 26. Qg6 {[%emt 0:00:32]} Bf8 {[%emt 0:00:06]} 27. Kf1 {[%emt 0:07:31]} Kg8 {[%emt 0:00:15]} 28. Rf6 {[%emt 0:01:04]} Qxg6 {[%emt 0:00:05]} 29. Rxg6 {[%emt 0:00:01]} Rxb2 {[%emt 0:00:26]} 30. Bf4 {[%emt 0:00:17]} Rxc2 {[%emt 0:00:09]} 31. Ne2 {[%emt 0:00:11]} Ne4 {[%emt 0:01:07]} 32. Rxe6 {[%emt 0:00:35]} Kf7 {[%emt 0:00:06]} 33. Be3 {[%emt 0:01:02]} Rxe2 {[%emt 0:00:39]} 0-1

[Event "VIII Iberoamericano Mexico 2022"]
[Site "Mexico City"]
[Date "2022.02.17"]
[Round "6.17"]
[White "Veiga, Jose Francisco R P N"]
[Black "Avila Rodriguez, Joshua Ad"]
[Result "0-1"]
[ECO "B51"]
[WhiteElo "2366"]
[BlackElo "2182"]
[Annotator "NA"]
[PlyCount "154"]
[EventDate "2022.02.12"]
[EventType "swiss"]
[EventCountry "MEX"]
[SourceTitle "playchess.com"]
[Source "ChessBase"]
[SourceQuality "1"]
[TimeControl "5400+30"]

1. e4 {[%emt 0:00:03]} c5 {[%emt 0:01:22]} 2. Nf3 {[%emt 0:00:07]} d6 {[%emt 0:00:08]} 3. Bb5+ {[%emt 0:00:20]} Nd7 {[%emt 0:00:18]} 4. O-O {[%emt 0:00:14]} a6 {[%emt 0:00:17]} 5. Bd3 {[%emt 0:00:17]} Ngf6 {[%emt 0:00:17]} 6. Re1 {[%emt 0:00:16]} e6 {[%emt 0:00:22]} 7. c3 {[%emt 0:00:49]} b5 {[%emt 0:01:04]} 8. Bc2 {[%emt 0:00:20]} c4 {[%emt 0:02:40]} 9. a4 {[%emt 0:02:40]} Bb7 {[%emt 0:00:19]} 10. axb5 {[%emt 0:00:41]} axb5 {[%emt 0:00:06]} 11. Rxa8 {[%emt 0:00:36]} Qxa8 {[%emt 0:00:07]} 12. Na3 {[%emt 0:01:14]} Bxe4 {[%emt 0:00:57]} 13. Bxe4 {[%emt 0:04:31]} Nxe4 {[%emt 0:00:06]} 14. Nxb5 {[%emt 0:00:08]} Qb7 {[%emt 0:00:08]} 15. Qa4 {[%emt 0:07:09]} d5 {[%emt 0:07:37]} 16. b4 {[%emt 0:08:12]} Be7 {[%emt 0:05:39]} 17. Bb2 {[%emt 0:06:29]} O-O {[%emt 0:02:24]} 18. Ra1 {[%emt 0:00:15]} Rb8 {[%emt 0:14:31]} 19. Nbd4 {[%emt 0:04:07]} Bf6 {[%emt 0:18:46]} 20. Bc1 {[%emt 0:05:00]} Nb6 {[%emt 0:01:55]} 21. Qa6 {[%emt 0:01:45]} h6 {[%emt 0:02:30]} 22. Kf1 {[%emt 0:03:56]} Ng5 {[%emt 0:07:17]} 23. Nxg5 {[%emt 0:02:50]} Bxd4 {[%emt 0:01:54]} 24. Qxb7 {[%emt 0:02:50]} Rxb7 {[%emt 0:00:06]} 25. Nxe6 {[%emt 0:01:42]} fxe6 {[%emt 0:04:10]} 26. cxd4 {[%emt 0:00:11]} Nd7 {[%emt 0:00:06]} 27. Ra4 {[%emt 0:02:53]} Nb8 {[%emt 0:00:42]} 28. Bb2 {[%emt 0:12:06]} Nc6 {[%emt 0:00:06]} 29. Bc3 {[%emt 0:00:02]} Ra7 {[%emt 0:00:46]} 30. Rxa7 {[%emt 0:00:07]} Nxa7 {[%emt 0:00:01]} 31. d3 {[%emt 0:01:53]} Nb5 {[%emt 0:19:58]} 32. dxc4 {[%emt 0:00:31]} dxc4 {[%emt 0:01:50]} 33. Ba1 {[%emt 0:00:05]} Nc7 {[%emt 0:00:10]} 34. Ke2 {[%emt 0:01:55]} Kf7 {[%emt 0:00:52]} 35. Kd2 {[%emt 0:00:20]} Nd5 {[%emt 0:00:10]} 36. b5 {[%emt 0:00:36]} Ke7 {[%emt 0:00:07]} 37. Bb2 {[%emt 0:00:09]} Kd7 {[%emt 0:01:06]} 38. Ba3 {[%emt 0:03:20]} g6 {[%emt 0:00:31]} 39. Bc5 {[%emt 0:02:33]} Kc7 {[%emt 0:00:56]} 40. g4 {[%emt 0:02:59]} Kb7 {[%emt 0:00:50]} 41. Bf8 {[%emt 0:01:02]} h5 {[%emt 0:02:05]} 42. gxh5 {[%emt 0:00:15]} gxh5 {[%emt 0:00:06]} 43. Bc5 {[%emt 0:00:02]} Kc7 {[%emt 0:01:06]} 44. Kc2 {[%emt 0:00:04]} Kb7 {[%emt 0:00:11]} 45. Kb2 {[%emt 0:00:10]} Kc7 {[%emt 0:00:16]} 46. Ka3 {[%emt 0:00:09]} Kb7 {[%emt 0:00:15]} 47. Bb4 {[%emt 0:00:35]} h4 {[%emt 0:02:20]} 48. Ba5 {[%emt 0:00:45]} h3 {[%emt 0:00:34]} 49. Kb2 {[%emt 0:00:41]} Nf6 {[%emt 0:00:44]} 50. f3 {[%emt 0:00:35]} Nd5 {[%emt 0:00:04]} 51. Kc2 {[%emt 0:00:48]} Ne3+ {[%emt 0:00:43]} 52. Kd2 {[%emt 0:00:21]} Nd5 {[%emt 0:00:19]} 53. Ke2 {[%emt 0:00:48]} Ne7 {[%emt 0:00:54]} 54. Kd2 {[%emt 0:05:42]} Nf5 {[%emt 0:00:31]} 55. Kc3 {[%emt 0:01:51]} Ne3 {[%emt 0:00:20]} 56. Kd2 {[%emt 0:01:27]} Nf5 {[%emt 0:00:06]} 57. Ke2 {[%emt 0:02:29]} Nxd4+ {[%emt 0:00:40]} 58. Kf2 {[%emt 0:00:00]} Nxb5 {[%emt 0:00:09]} 59. Kg3 {[%emt 0:00:03]} Kc6 {[%emt 0:00:34]} 60. Kxh3 {[%emt 0:00:04]} Kd7 {[%emt 0:00:09]} 61. Kg4 {[%emt 0:00:57]} c3 {[%emt 0:00:21]} 62. Kf4 {[%emt 0:02:41]} c2 {[%emt 0:00:34]} 63. Bd2 {[%emt 0:00:01]} Nd4 {[%emt 0:00:17]} 64. Ke4 {[%emt 0:01:25]} Nb3 {[%emt 0:00:17]} 65. Bg5 {[%emt 0:00:02]} c1=Q {[%emt 0:00:16]} 66. Bxc1 {[%emt 0:00:04]} Nxc1 {[%emt 0:00:04]} 67. f4 {[%emt 0:00:25]} Kd6 {[%emt 0:01:21]} 68. f5 {[%emt 0:00:27]} e5 {[%emt 0:00:09]} 69. f6 {[%emt 0:00:05]} Nb3 {[%emt 0:00:06]} 70. Kf5 {[%emt 0:01:30]} Nc5 {[%emt 0:05:08]} 71. h4 {[%emt 0:00:04]} e4 {[%emt 0:00:18]} 72. h5 {[%emt 0:00:04]} e3 {[%emt 0:00:09]} 73. h6 {[%emt 0:00:02]} e2 {[%emt 0:00:03]} 74. h7 {[%emt 0:00:04]} e1=Q {[%emt 0:00:03]} 75. h8=Q {[%emt 0:00:08]} Qe4+ {[%emt 0:00:06]} 76. Kg5 {[%emt 0:00:06]} Ne6+ {[%emt 0:00:09]} 77. Kh5 {[%emt 0:00:19]} Qh1+ {[%emt 0:00:05]} 0-1

[Event "VIII Iberoamericano Mexico 2022"]
[Site "Mexico City"]
[Date "2022.02.17"]
[Round "6.18"]
[White "Ramirez Toledo, Ayleen Maribel"]
[Black "Perez Garcia, Rodney Oscar"]
[Result "0-1"]
[ECO "A37"]
[WhiteElo "1810"]
[BlackElo "2331"]
[Annotator "NA"]
[PlyCount "86"]
[EventDate "2022.02.12"]
[EventType "swiss"]
[EventCountry "MEX"]
[SourceTitle "playchess.com"]
[Source "ChessBase"]
[SourceQuality "1"]
[TimeControl "5400+30"]

1. Nf3 {[%emt 0:00:03]} c5 {[%emt 0:08:47]} 2. g3 {[%emt 0:00:41]} Nc6 {[%emt 0:00:07]} 3. c4 {[%emt 0:01:53]} g6 {[%emt 0:06:58]} 4. Bg2 {[%emt 0:00:09]} Bg7 {[%emt 0:00:07]} 5. O-O {[%emt 0:00:06]} d6 {[%emt 0:02:20]} 6. Nc3 {[%emt 0:01:42]} e5 {[%emt 0:04:40]} 7. d3 {[%emt 0:03:45]} Nge7 {[%emt 0:00:19]} 8. e4 {[%emt 0:11:01]} a6 {[%emt 0:03:47]} 9. Be3 {[%emt 0:04:42]} Rb8 {[%emt 0:02:30]} 10. a4 {[%emt 0:03:34]} O-O {[%emt 0:01:46]} 11. Qd2 {[%emt 0:03:05]} Nd4 {[%emt 0:18:48]} 12. Rae1 {[%emt 0:06:32]} Bd7 {[%emt 0:08:58]} 13. Nh4 {[%emt 0:16:26]} b5 {[%emt 0:00:44]} 14. axb5 {[%emt 0:06:45]} axb5 {[%emt 0:00:03]} 15. f4 {[%emt 0:02:45]} exf4 {[%emt 0:03:22]} 16. gxf4 {[%emt 0:09:35]} Nec6 {[%emt 0:06:30]} 17. Nf3 {[%emt 0:05:23]} bxc4 {[%emt 0:00:23]} 18. dxc4 {[%emt 0:00:24]} Be6 {[%emt 0:00:02]} 19. Rf2 {[%emt 0:06:00]} Bxc4 {[%emt 0:01:16]} 20. f5 {[%emt 0:02:18]} Re8 {[%emt 0:06:48]} 21. Bg5 {[%emt 0:06:10]} Bf6 {[%emt 0:01:02]} 22. Be3 {[%emt 0:02:04]} Nxf3+ {[%emt 0:09:42]} 23. Rxf3 {[%emt 0:00:39]} Ne5 {[%emt 0:00:28]} 24. Rh3 {[%emt 0:01:49]} Ng4 {[%emt 0:01:23]} 25. Kh1 {[%emt 0:02:03]} Nxe3 {[%emt 0:00:36]} 26. Qxe3 {[%emt 0:00:40]} Bg7 {[%emt 0:00:34]} 27. Qf2 {[%emt 0:01:41]} Rb4 {[%emt 0:01:41]} 28. Nd1 {[%emt 0:02:00]} Qf6 {[%emt 0:02:58]} 29. Nc3 {[%emt 0:00:28]} Reb8 {[%emt 0:01:59]} 30. Nd1 {[%emt 0:00:24]} Rb3 {[%emt 0:01:17]} 31. Rxb3 {[%emt 0:00:32]} Bxb3 {[%emt 0:00:20]} 32. e5 {[%emt 0:00:38]} dxe5 {[%emt 0:02:06]} 33. Qxc5 {[%emt 0:00:13]} Qxf5 {[%emt 0:00:29]} 34. Qc7 {[%emt 0:00:34]} Qc8 {[%emt 0:01:04]} 35. Qe7 {[%emt 0:00:25]} Qd8 {[%emt 0:00:21]} 36. Qxd8+ {[%emt 0:00:41]} Rxd8 {[%emt 0:00:01]} 37. Ne3 {[%emt 0:00:23]} f5 {[%emt 0:00:13]} 38. Nf1 {[%emt 0:00:40]} e4 {[%emt 0:00:23]} 39. Bh3 {[%emt 0:00:32]} Rb8 {[%emt 0:01:18]} 40. Ne3 {[%emt 0:00:17]} Bxb2 {[%emt 0:00:27]} 41. Kg2 {[%emt 0:00:47]} Bd4 {[%emt 0:00:33]} 42. Kg3 {[%emt 0:00:30]} Be6 {[%emt 0:00:43]} 43. Nc2 {[%emt 0:00:27]} Be5+ {[%emt 0:00:10]} 0-1